Cogmind - Beta 13 @@@ ROGUE MODE // 2024.04.12 @ 17:59:27 Player: Millea Result: Destroyed by S-27 Virus with Autogun Performance ------------- Evolutions (3) 1500 Regions Visited (10) 2000 Robots Destroyed (185) 925 Value Destroyed (8581) 8581 Prototype IDs (27) 540 Alien Tech Used (0) 0 Bonus (4846) 4846 TOTAL SCORE: 18392 Bonus ------- High Alert Combat Kills 2918 Follower Combat Kills 161 Entered Garrisons 600 Used RIF Installer 1000 Aligned with FarCom 300 Friendly Fire -133 Cogmind --------- Core Integrity 0/700 Matter 192/300 Energy 290/290 System Corruption 1% Temperature Cool (0) Movement Core (750) Ox14 Location -7/Garrison Parts ------- > --- POWER (1) -------- Improved Deuterium Engine > --- PROPULSION (3) --- Carbon-fiber Leg > --- UTILITY (5) ------ Power Amplifier Improved Heat Sink Large Storage Unit Weapon Cycler > --- WEAPON (4) ------- Power Sword Power Sword Power Sword Power Sword > --- INVENTORY (15) --- Light Nuclear Core Light Nuclear Core Improved Heat Sink Small Matter Pod (0) Energy Filter Remote Force Field Autogun Gauss Rifle Remote Datajack Power Sword Power Sword Power Sword Power Sword Power Sword Power Sword Peak State ------------ > --- POWER ------------ Enhanced Nuclear Core > --- PROPULSION ------- Light Treads Armored Treads Armored Treads > --- UTILITY ---------- Advanced Cooling System Large Storage Unit Layered Heavy Armor Plating Improved Shield Generator > --- WEAPON ----------- Gauss Rifle Gauss Rifle Heavy Machine Gun KE Penetrator > --- INVENTORY -------- Light Treads Light Treads Weapon Cycler Medium Armor Plating Improved Light Armor Plating Improved Powered Armor Improved Focal Shield Shield Generator Heavy Machine Gun Gauss Cannon Gauss Cannon Gauss Cannon Gauss Cannon Enhanced Gauss Cannon Remote Datajack [Rating: 59] Favorites ----------- Power Nuclear Core Engine Deuterium Engine Power Core Nuclear Core Propulsion Light Treads Treads Light Treads Leg Carbon-fiber Leg Utility Large Storage Unit Device Shield Generator Storage Large Storage Unit Hackware Hacking Suite Protection Layered Heavy Armor Plating Weapon Gauss Rifle Energy Gun Medium Laser Energy Cannon Plasma Cannon Ballistic Gun Gauss Rifle Ballistic Cannon Gauss Cannon Special Weapon Remote Datajack Slashing Weapon Great Axe Build | -11 -10 -10 -10 -9 -8 -8 -7 -7 -7 -7 ------- Run | Yrd Mat Min Exi Min Mat Gar Fac Gar Fac Gar Slots Evolved 6 | . . . . . 4 . 2 . . . Power . | . . . . . . . . . . . Propulsion 1 | . . . . . . . 1 . . . Utility 3 | . . . . . 2 . 1 . . . Weapon 2 | . . . . . 2 . . . . . Parts Attached 116 | 6 1 . 1 1 28 9 31 7 23 9 Power 7 | 1 . . . . 3 . 2 . 1 . Engine 5 | 1 . . . . 2 . 1 . 1 . Core 2 | . . . . . 1 . 1 . . . Reactor . | . . . . . . . . . . . Propulsion 30 | 2 . . . . 8 1 8 2 8 1 Treads 29 | 2 . . . . 8 1 8 2 8 . Leg 1 | . . . . . . . . . . 1 Wheel . | . . . . . . . . . . . Hover . | . . . . . . . . . . . Flight . | . . . . . . . . . . . Utility 40 | 1 1 . 1 . 8 5 11 3 8 2 Device 19 | . . . 1 . 3 2 6 1 4 2 Storage 3 | 1 1 . . . . . . . 1 . Processor . | . . . . . . . . . . . Hackware 5 | . . . . . . 2 3 . . . Protection 13 | . . . . . 5 1 2 2 3 . Artifact . | . . . . . . . . . . . Weapon 39 | 2 . . . 1 9 3 10 2 6 6 Energy Gun 4 | 1 . . . . 2 . . 1 . . Energy Cannon 1 | . . . . . . . . . 1 . Ballistic Gun 18 | 1 . . . 1 5 3 4 . 2 2 Ballistic Cannon 9 | . . . . . 2 . 5 1 1 . Launcher . | . . . . . . . . . . . Special Weapon 1 | . . . . . . . 1 . . . Impact Weapon . | . . . . . . . . . . . Slashing Weapon 6 | . . . . . . . . . 2 4 Piercing Weapon . | . . . . . . . . . . . Special Melee Weapon . | . . . . . . . . . . . Unidentified Prototypes 1 | . . . . . . . 1 . . . Parts Lost 48 | . . . . . 10 . 14 4 16 4 Power 4 | . . . . . 2 . 1 . 1 . Propulsion 11 | . . . . . . . 4 . 5 2 Utility 15 | . . . . . 4 . 3 2 5 1 Weapon 18 | . . . . . 4 . 6 2 5 1 Highest Loss Streak 10 | . . . . . 3 . 10 3 10 2 To Critical Strikes . | . . . . . . . . . . . Average Slot Usage (%) 95 | . 85 85 93 100 99 94 92 99 97 89 Engine 5 | . 14 14 14 14 8 . . 7 6 7 Core 2 | . . . . . . 9 6 . . . Treads 21 | . 28 28 28 28 18 18 22 23 22 14 Device 15 | . . . 7 14 16 10 15 21 24 22 Storage 8 | . 14 14 14 14 9 9 7 7 7 7 Protection 6 | . . . . . 10 6 7 8 4 4 Energy Gun 2 | . 14 14 14 2 2 . . 2 6 . Ballistic Gun 21 | . 14 14 14 25 20 36 26 . 4 3 Ballistic Cannon 7 | . . . . . 12 . 3 27 16 4 Naked Turns . | . . . . . . . . . . . Heaviest Build 83 | 13 28 28 36 36 55 66 83 83 69 58 Greatest Support 62 | 40 40 40 40 40 40 40 60 60 62 40 Greatest Overweight (x) 2 | 2 . . . . 1 1 1 1 1 2 Average Overweight (x) . | . . . . . . 1 . 1 . 1 Largest Inventory Capacity 15 | 8 15 15 15 15 15 15 15 15 15 15 Average Capacity 14 | 6 14 15 15 15 15 15 15 15 15 15 Most Carried 15 | 2 5 5 12 15 15 15 15 15 15 15 Average Carried 12 | 1 3 5 6 14 13 14 13 14 14 7 Final Capacity 15 | 8 15 15 15 15 15 15 15 15 15 15 Final Carried 15 | 2 5 5 12 15 15 15 15 13 7 15 Class Distribution -------------------- 42% | Scavenger-Tank 18% | Tank 17% | Mutant 13% | Scavenger-Skirmisher 3% | Skirmisher 3% | Scavenger-Mutant Dominant Class ---------------- Mutant | -10/Materials Mutant | -10/Mines Mutant | -10/Exiles Mutant | -9/Mines Tank | -8/Materials Scavenger-Tank | -8/Garrison Scavenger-Tank | -7/Factory Scavenger-Skirmisher | -7/Garrison Scavenger-Skirmisher | -7/Factory Scavenger-Mutant | -7/Garrison Resources | -11 -10 -10 -10 -9 -8 -8 -7 -7 -7 -7 ----------- Run | Yrd Mat Min Exi Min Mat Gar Fac Gar Fac Gar Matter Collected 6775 | 234 51 . 30 34 2163 70 2731 580 787 95 Remotely . | . . . . . . . . . . . Salvage Created 7644 | . 116 . . 110 2592 70 3418 434 819 85 Parts 410 | . 12 . . 4 138 7 177 18 44 10 Haulers Intercepted 10 | . 1 . . . 5 . 3 . 1 . Recyclers Shooed 4 | . 1 . . . 1 . . . 2 . Parts Field Recycled . | . . . . . . . . . . . Retrieved Matter . | . . . . . . . . . . . Parts Self-Destructed . | . . . . . . . . . . . Prevented . | . . . . . . . . . . . Kills | -11 -10 -10 -10 -9 -8 -8 -7 -7 -7 -7 ------- Run | Yrd Mat Min Exi Min Mat Gar Fac Gar Fac Gar Combat Hostiles Destroyed 147 | . 4 . . 2 48 . 56 14 19 4 Melee 1 | . . . . . . . . . . 1 Guns 91 | . 4 . . 2 31 . 44 1 8 1 Cannons 55 | . . . . . 17 . 12 13 11 2 Classes Destroyed 17 | . 3 . . 1 8 . 5 . . . Worker 9 | . . . . . 4 . 5 . . . Builder 9 | . . . . . 4 . 3 . 2 . Hauler 10 | . 1 . . . 5 . 3 . 1 . Recycler 4 | . . . . . . . 3 . 1 . Mechanic 2 | . . . . . . . 2 . . . Operator 1 | . . . . . 1 . . . . . Watcher 8 | . 1 . . . 4 . 2 . 1 . Swarmer 13 | . 4 . . . 2 1 . . 3 3 Grunt 73 | . . . . . 27 . 31 6 9 . Brawler 9 | . . . . . 1 . 6 2 . . Duelist 5 | . . . . . . . 4 1 . . Protector 1 | . . . . . . . 1 . . . Sentry 17 | . . . . 2 6 . 4 4 1 . Specialist 10 | . . . . . 10 . . . . . Hunter 9 | . . . . . 1 . 4 . 3 1 Programmer 10 | . . . . . . . 6 1 3 . Heavy 1 | . . . . . 1 . . . . . Best Kill Streak 8 | . 5 . . 1 7 . 8 6 4 3 Combat Bots Only 7 | . 4 . . 1 6 . 7 6 3 3 Max Kills in Single Turn 3 | . 1 . . 1 2 1 3 2 2 1 Gunslinging . | . . . . . . . . . . . Exploded . | . . . . . . . . . . . Melee 1 | . . . . . . . . . . 1 Uniques/NPCs Destroyed . | . . . . . . . . . . . Combat | -11 -10 -10 -10 -9 -8 -8 -7 -7 -7 -7 -------- Run | Yrd Mat Min Exi Min Mat Gar Fac Gar Fac Gar Hostile Shots Fired 1174 | . 17 . . 32 215 . 341 183 340 46 Missed 304 | . 6 . . 10 51 . 81 62 84 10 Damage Taken 10688 | . 85 . . 325 2299 . 3984 1015 2494 486 Core 878 | . 17 . . . 156 . 261 123 216 105 Absorbed by Shields 1480 | . . . . . 809 . 599 . . 72 Redirected to Shielding 124 | . . . . . 124 . . . . . Core Remaining (%) 88 | 100 . . . 93 . 71 . . . . Volleys Fired 421 | . 15 . . 16 137 14 151 32 48 8 Largest 4 | . 2 . . 2 4 1 4 4 4 2 Hottest 207 | . 70 . . 70 145 30 201 207 207 76 Shots Fired 1396 | . 25 . . 31 523 13 536 118 139 11 Gun 954 | . 25 . . 31 345 13 455 9 70 6 Cannon 428 | . . . . . 178 . 67 109 69 5 Launcher . | . . . . . . . . . . . Special 14 | . . . . . . . 14 . . . Kinetic 1277 | . 15 . . 19 484 13 522 109 104 11 Thermal 105 | . 10 . . 12 39 . . 9 35 . Explosive . | . . . . . . . . . . . Electromagnetic . | . . . . . . . . . . . Robot Hit Streak 24 | . 7 . . 14 20 10 24 8 10 17 Robot Miss Streak 8 | . 3 . . 3 8 . 3 7 4 1 Penetration Max 1 | . . . . . . 1 1 1 1 . Secondary Targets 7 | . 1 . . . . . 6 . . . Max Gunslinging Chain 1 | . 1 . . . . . 1 . . . Shots Hit Robots 852 | . 12 . . 23 307 8 350 59 80 13 Core Hits 364 | . 8 . . 5 134 3 151 22 36 5 Critical Kills 4 | . . . . . 1 . 3 . . . Critical Parts Destroyed 8 | . . . . . 3 . 5 . . . Critical Strikes 43 | . . . . . 11 . 16 11 4 1 Burn 2 | . . . . . 1 . . 1 . . Destroy 12 | . . . . . 4 . 8 . . . Blast 28 | . . . . . 6 . 8 10 4 . Sever 1 | . . . . . . . . . . 1 Melee Attacks 8 | . . . . . . . . . . 8 Impact . | . . . . . . . . . . . Slashing 8 | . . . . . . . . . . 8 Piercing . | . . . . . . . . . . . Sneak Attacks . | . . . . . . . . . . . Combat Hostiles . | . . . . . . . . . . . Follow-up Attacks 1 | . . . . . . . . . . 1 Damage Inflicted 18882 | . 138 . . 228 5626 182 8615 1785 1961 347 Guns 12243 | . 138 . . 223 3445 182 7045 98 1036 76 Cannons 6372 | . . . . . 2179 . 1474 1687 925 107 Explosions 78 | . . . . . . . 78 . . . Melee 164 | . . . . . . . . . . 164 Ramming 25 | . . . . 5 2 . 18 . . . Kinetic 17463 | . 51 . . 112 5243 182 8519 1687 1486 183 Thermal 1152 | . 87 . . 111 381 . . 98 475 . Explosive 78 | . . . . . . . 78 . . . Electromagnetic . | . . . . . . . . . . . Impact . | . . . . . . . . . . . Slashing 164 | . . . . . . . . . . 164 Piercing . | . . . . . . . . . . . Highest Corruption 3 | . . . . . 2 2 3 3 3 3 Average Corruption 2 | . . . . . 2 2 2 3 2 1 Corruption Purged 5 | . . . . . . . . . 3 2 Corruption Blocked . | . . . . . . . . . . . Effects 83 | . . . . . 14 17 37 6 5 4 Message Errors 18 | . . . . . 3 2 11 1 1 . Matter Fused 17 | . . . . . 1 4 9 1 1 1 Heat Flow Errors 7 | . . . . . 2 1 2 . 1 1 Energy Discharges 10 | . . . . . 3 2 4 1 . . Data Loss (minor) 9 | . . . . . 4 2 . 1 2 . Data Loss (major) 10 | . . . . . . 4 4 1 . 1 Misfires 1 | . . . . . . . . . . 1 Alerts 5 | . . . . . 1 1 3 . . . Weapon Failures 6 | . . . . . . 1 4 1 . . Overload Shots . | . . . . . . . . . . . Overflow Damage 86 | . . . . . 13 . 33 19 8 13 Projectiles 73 | . . . . . 13 . 33 19 8 . Explosions . | . . . . . . . . . . . Melee 13 | . . . . . . . . . . 13 Knockbacks 55 | . . . . . 26 . 15 7 7 . Impact . | . . . . . . . . . . . Kinetic 51 | . . . . . 23 . 14 7 7 . Secondary 4 | . . . . . 3 . 1 . . . Self-Inflicted Damage 87 | . . . . . . . 87 . . . Shots 3 | . . . . . . . 3 . . . Rammed 3 | . . . . 1 1 . 1 . . . Targets Rammed 4 | . . . . 1 1 . 2 . . . Kicked . | . . . . . . . . . . . Crushed 1 | . . . . . . . 1 . . . Highest Temperature 389 | . 70 . . 254 329 106 298 185 389 116 Average Temperature 86 | . 28 . . 134 81 49 90 49 132 43 Received Heat Transfer 3786 | . . . . 108 717 . 1806 303 852 . Effects 11 | . . . . 4 3 . 2 . 2 . Shutdowns 1 | . . . . . . . . . 1 . Energy Bleed 2 | . . . . 1 . . . . 1 . Interference 8 | . . . . 3 3 . 2 . . . Siege Activations . | . . . . . . . . . . . Robots Corrupted . | . . . . . . . . . . . Combat Hostiles . | . . . . . . . . . . . Parts Fried . | . . . . . . . . . . . Impact Corruptions 1 | . . . . . . . 1 . . . Robots Melted . | . . . . . . . . . . . Combat Hostiles . | . . . . . . . . . . . Parts Melted 3 | . . . . 2 . . . . 1 . Heat Transferred 3025 | . 259 . . 333 1184 . . 296 953 . Parts Sabotaged . | . . . . . . . . . . . Parts Stolen . | . . . . . . . . . . . Parts Stripped . | . . . . . . . . . . . Power Chain Reactions . | . . . . . . . . . . . Alert | -11 -10 -10 -10 -9 -8 -8 -7 -7 -7 -7 ------- Run | Yrd Mat Min Exi Min Mat Gar Fac Gar Fac Gar Peak Influence 1600 | . 166 64 . 55 767 1432 1600 1483 861 649 Initial 1120 | . . 64 . . . 462 751 1120 778 564 Average 642 | . 98 64 . 8 335 910 986 1331 747 606 Maximum Alert Level 5 | . . . . . 3 4 5 4 3 2 Low Security (%) 22 | 100 100 100 . 100 31 . . . . . Level 1 4 | . . . . . 16 . . . . . Level 2 25 | . . . . . 49 22 9 . 31 100 Level 3 30 | . . . . . 3 53 56 . 68 . Level 4 16 | . . . . . . 24 31 100 . . Level 5 . | . . . . . . . 1 . . . High Security . | . . . . . . . . . . . Max Security . | . . . . . . . . . . . Sterilizations 1 | . . . . . 1 . . . . . Squads Dispatched 45 | . 2 . . . 16 . 19 . 8 . Investigation 9 | . 2 . . . 3 . 3 . 1 . Extermination 6 | . . . . . . . 5 . 1 . Reinforcement 15 | . . . . . 7 . 3 . 5 . Assault 8 | . . . . . 1 . 7 . . . Garrison 7 | . . . . . 5 . 1 . 1 . Intercept . | . . . . . . . . . . . Searches Triggered . | . . . . . . . . . . . Construction Impeded 4 | . . . . . . . 1 . 3 . Haulers Reinforced 2 | . . . . . . . 2 . . . Active Scanning Responses . | . . . . . . . . . . . Cargo Convoy Interrupts . | . . . . . . . . . . . Stealth | -11 -10 -10 -10 -9 -8 -8 -7 -7 -7 -7 --------- Run | Yrd Mat Min Exi Min Mat Gar Fac Gar Fac Gar Distress Signals 7 | . 2 . . . 2 . 2 . 1 . Communications Jammed . | . . . . . . . . . . . Distress Signals . | . . . . . . . . . . . Times Spotted 223 | . 6 . . 2 73 . 92 14 29 7 Peak Tracking Total 9 | . 4 . . 2 5 . 9 5 5 3 Tactical Retreats 14 | . 1 . . . 8 . 4 1 . . Traps | -11 -10 -10 -10 -9 -8 -8 -7 -7 -7 -7 ------- Run | Yrd Mat Min Exi Min Mat Gar Fac Gar Fac Gar Traps Triggered 11 | . . . . . 2 1 2 3 . 3 Indirectly . | . . . . . . . . . . . Trap Hack Attempts . | . . . . . . . . . . . Triggered . | . . . . . . . . . . . Disarmed . | . . . . . . . . . . . Reprogrammed . | . . . . . . . . . . . Reused . | . . . . . . . . . . . Traps Extracted . | . . . . . . . . . . . Installed . | . . . . . . . . . . . Triggered . | . . . . . . . . . . . Machines | -11 -10 -10 -10 -9 -8 -8 -7 -7 -7 -7 ---------- Run | Yrd Mat Min Exi Min Mat Gar Fac Gar Fac Gar Machines Disabled 36 | . . . . . 2 5 26 2 1 . Max in Single Turn 11 | . . . . . 1 1 11 1 1 . Garrison Relay 6 | . . . . . . 5 . 1 . . Machines Repaired . | . . . . . . . . . . . Machines Dismantled . | . . . . . . . . . . . Machines Sabotaged . | . . . . . . . . . . . Overloaded Fab Kills . | . . . . . . . . . . . Hacking | -11 -10 -10 -10 -9 -8 -8 -7 -7 -7 -7 --------- Run | Yrd Mat Min Exi Min Mat Gar Fac Gar Fac Gar Machines Accessed 31 | . 2 . 3 1 11 2 10 . 2 . Terminals 20 | . 2 . . 1 8 2 6 . 1 . Fabricators 1 | . . . . . . . 1 . . . Repair Stations . | . . . . . . . . . . . Recycling Units 3 | . . . . . 1 . 2 . . . Scanalyzers 1 | . . . . . 1 . . . . . Garrison Access 3 | . . . . . 1 . 1 . 1 . Total Hacks 105 | . 12 . 14 6 42 5 22 . 4 . Successful 47 | . 4 . 14 2 16 1 9 . 1 . Failed 56 | . 7 . . 3 26 4 13 . 3 . Catastrophic 13 | . 1 . . . 3 2 6 . 1 . Database Lockouts 2 | . 1 . . 1 . . . . . . Manual 62 | . 8 . 1 4 27 4 15 . 3 . Terminals 74 | . 12 . . 6 33 5 15 . 3 . Fabricators 2 | . . . . . . . 2 . . . Repair Stations . | . . . . . . . . . . . Recycling Units 10 | . . . . . 6 . 4 . . . Scanalyzers 2 | . . . . . 2 . . . . . Garrison Access 3 | . . . . . 1 . 1 . 1 . Terminal Hacks 28 | . 4 . 14 2 5 1 2 . . . Record 13 | . . . 13 . . . . . . . Robot Analysis 7 | . 3 . . 1 2 . 1 . . . Prototype ID Bank 1 | . 1 . . . . . . . . . Alert Level 1 | . . . . . 1 . . . . . Unreport Threat 2 | . . . . . 2 . . . . . Dispatch Records 1 | . . . . 1 . . . . . . Zone Layout 1 | . . . . . . . 1 . . . Garrison Registry 1 | . . . . . . 1 . . . . Derelict Proto ID Bank 1 | . . . 1 . . . . . . . Fabricator Hacks 1 | . . . . . . . 1 . . . Network Status 1 | . . . . . . . 1 . . . Repair Station Hacks . | . . . . . . . . . . . Recycling Unit Hacks 1 | . . . . . 1 . . . . . Retrieve Components 1 | . . . . . 1 . . . . . Scanalyzer . | . . . . . . . . . . . Garrison Access Hacks 3 | . . . . . 1 . 1 . 1 . Unlock Access 3 | . . . . . 1 . 1 . 1 . Unauthorized Hacks 14 | . . . . . 9 . 5 . . . Terminals 10 | . . . . . 6 . 4 . . . Botnet 9 | . . . . . 6 . 3 . . . Operators 1 | . . . . . . . 1 . . . Fabricators 1 | . . . . . . . 1 . . . Report 1 | . . . . . . . 1 . . . Repair Stations . | . . . . . . . . . . . Recycling Units 3 | . . . . . 3 . . . . . Monitor 1 | . . . . . 1 . . . . . Reject 1 | . . . . . 1 . . . . . Mask 1 | . . . . . 1 . . . . . Scanalyzers . | . . . . . . . . . . . Garrison Access . | . . . . . . . . . . . Data Cores Recovered . | . . . . . . . . . . . Used . | . . . . . . . . . . . Hacking Detections 28 | . 2 . . 1 11 2 10 . 2 . Full Trace Events 13 | . 2 . . . 5 2 3 . 1 . Feedback Events . | . . . . . . . . . . . Feedback Blocked . | . . . . . . . . . . . Robot Schematics Acquired . | . . . . . . . . . . . Robots Built . | . . . . . . . . . . . Authchips . | . . . . . . . . . . . Time . | . . . . . . . . . . . Total Robot Build Rating . | . . . . . . . . . . . Part Schematics Acquired . | . . . . . . . . . . . Parts Built . | . . . . . . . . . . . Authchips . | . . . . . . . . . . . Time . | . . . . . . . . . . . Total Part Build Rating . | . . . . . . . . . . . Parts Repaired . | . . . . . . . . . . . Time . | . . . . . . . . . . . Parts Recycled . | . . . . . . . . . . . Recycled Matter . | . . . . . . . . . . . Retrieved Matter . | . . . . . . . . . . . Retrieved Components 10 | . . . . . 10 . . . . . Parts Scanalyzed . | . . . . . . . . . . . Part Schematics Acquired . | . . . . . . . . . . . Parts Damaged . | . . . . . . . . . . . Bothacking | -11 -10 -10 -10 -9 -8 -8 -7 -7 -7 -7 ------------ Run | Yrd Mat Min Exi Min Mat Gar Fac Gar Fac Gar Used RIF Installer 2 | . . . . . . 2 . . . . Zone Cloak 1 | . . . . . . 1 . . . . Robots Hacked 2 | . . . . . . . 2 . . . Non-combat 1 | . . . . . . . 1 . . . Combat 1 | . . . . . . . 1 . . . Robot Hacks Applied 12 | . . . . . . . 12 . . . generate_echo 1 | . . . . . . . 1 . . . check_alert 1 | . . . . . . . 1 . . . purge_threat 6 | . . . . . . . 6 . . . disarm_traps 1 | . . . . . . . 1 . . . reprogram_traps 1 | . . . . . . . 1 . . . clear_repairs 1 | . . . . . . . 1 . . . emergency_deploy 1 | . . . . . . . 1 . . . Relay Couplers Released 25 | . . . . . . 19 3 3 . . Machine Destruction 22 | . . . . . . 19 . 3 . . Programmers 3 | . . . . . . . 3 . . . Attached 3 | . . . . . . . 3 . . . Fabnet Peak Effective % . | . . . . . . . . . . . Robots Rewired 3 | . . . . . . 3 . . . . Allies Hacked . | . . . . . . . . . . . Hacks Repelled . | . . . . . . . . . . . Allies | -11 -10 -10 -10 -9 -8 -8 -7 -7 -7 -7 -------- Run | Yrd Mat Min Exi Min Mat Gar Fac Gar Fac Gar Total Allies 6 | . . . . 3 . 3 . . . . Largest Group 3 | . . . . 3 3 2 2 . . . Highest-Rated Group 40 | . . . . 40 40 36 36 . . . Highest-Rated Ally 21 | . . . . 16 16 21 21 . . . Total Orders . | . . . . . . . . . . . Ally Attacks 31 | . . . . . 10 . 21 . . . Total Damage 597 | . . . . . 93 . 504 . . . Kills 10 | . . . . . 3 . 7 . . . Allies Corrupted 1 | . . . . . . . 1 . . . Allies Melted . | . . . . . . . . . . . Intel | -11 -10 -10 -10 -9 -8 -8 -7 -7 -7 -7 ------- Run | Yrd Mat Min Exi Min Mat Gar Fac Gar Fac Gar Robot Analysis Total 7 | . 3 . . 1 2 . 1 . . . Derelict Logs Recovered 1 | . . . . 1 . . . . . . Drone Launches . | . . . . . . . . . . . Drone Recoveries . | . . . . . . . . . . . Exploration | -11 -10 -10 -10 -9 -8 -8 -7 -7 -7 -7 ------------- Run | Yrd Mat Min Exi Min Mat Gar Fac Gar Fac Gar Turns Passed 12202 | 74 197 254 427 1153 3247 1447 3396 547 1086 374 Spaces Moved 4417 | 49 90 94 262 631 950 551 1118 179 371 122 Core 20 | 20 . . . . . . . . . . Treads 4397 | 29 90 94 262 631 950 551 1118 179 371 122 Legs . | . . . . . . . . . . . Wheels . | . . . . . . . . . . . Hover . | . . . . . . . . . . . Flight . | . . . . . . . . . . . Fastest Speed 50 | 50 160 160 160 160 160 250 166 240 152 240 Average Speed 221 | 129 160 160 160 160 239 250 245 240 230 240 Slowest Speed 320 | 160 160 160 160 160 245 250 250 240 240 320 Overloaded Moves . | . . . . . . . . . . . Propulsion Burnouts . | . . . . . . . . . . . Robots Hopped . | . . . . . . . . . . . Cave-ins Triggered . | . . . . . . . . . . . Exploration Rate (%) 39 | 4 28 16 61 88 67 84 31 31 9 16 Regions Visited 10 Branch Regions 3 Pre-discovered Areas 1 | . . . 1 . . . . . . . Known Exits Taken 3 | . . . . . 1 . 1 . 1 . Unknown Exits Taken 5 | 1 1 1 1 1 . . . . . . Scrap Searched 2 | . . . . 2 . . . . . . Spaces Dug 3 | . . . . . 1 . . . 2 . Terrain Destroyed 130 | . . . . . 28 . 72 7 22 1 Melee . | . . . . . . . . . . . Projectile 80 | . . . . . 28 . 22 7 22 1 AOE 49 | . . . . . . . 49 . . . Terrain Rammed . | . . . . . . . . . . . Walls Destroyed . | . . . . . . . . . . . Machines Disabled . | . . . . . . . . . . . Actions | -11 -10 -10 -10 -9 -8 -8 -7 -7 -7 -7 --------- Run | Yrd Mat Min Exi Min Mat Gar Fac Gar Fac Gar Total 6034 | 57 121 198 269 749 1631 614 1445 238 528 184 Wait 887 | . 12 105 . 86 476 . 113 8 65 22 Move 4410 | 48 89 93 261 630 950 550 1118 178 371 122 Hop . | . . . . . . . . . . . Pick Up 102 | 3 3 . 7 9 21 16 21 3 11 8 Fast Attach 27 | 5 1 . 1 . 4 2 3 . 6 5 Attach 50 | 1 . . . . 11 3 18 4 11 2 Detach 2 | . . . . . . . . . . 2 Swap 39 | . . . . 1 13 4 10 3 6 2 Drop 65 | . 1 . . 6 18 17 7 4 10 2 Fire 421 | . 15 . . 16 137 14 151 32 48 8 Melee 7 | . . . . . . . . . . 7 Ram . | . . . . . . . . . . . Kick . | . . . . . . . . . . . Crush 4 | . . . . 1 1 . 2 . . . Escape Stasis 12 | . . . . . . . 2 6 . 4 Rewire 8 | . . . . . . 8 . . . . Trap . | . . . . . . . . . . . Miscellaneous . | . . . . . . . . . . . Route ------- -11/Scrapyard -10/Materials -10/Mines -10/Exiles -9/Mines -8/Materials (discovered 4 exits: *Fac x3 / Gar) -8/Garrison (discovered 3 exits: *Fac x3) -7/Factory (discovered 2 exits: [*Fac] / Gar) -7/Garrison -7/Factory -7/Garrison History --------- Turn | Location | Event 14 | -11/Scrapyard | Discovered new exit (range 16) 75 | -11/Scrapyard | Entered Materials 184 | -10/Materials | Discovered new exit (range 13) 257 | -10/Materials | Central database locked down 272 | -10/Materials | Entered Mines 280 | -10/Mines | Deemed a non-threat by the Exiles lab entrance 280 | -10/Mines | Discovered new exit (range 5) 315 | -10/Mines | Build established: Mutant 362 | -10/Mines | Excavation squad dispatched 362 | -10/Mines | A large section of the Mines collapsed 526 | -10/Mines | Entered Exiles 565 | -10/Exiles | Met 8R-AWN 592 | -10/Exiles | Met EX-HEX 640 | -10/Exiles | Met EX-BIN 659 | -10/Exiles | Aligned with FarCom system 661 | -10/Exiles | Given EX-Vault access code 714 | -10/Exiles | Opened EX-Vault 726 | -10/Exiles | Found Cloak of Protection 760 | -10/Exiles | Warned to stay clear of 0b10 Research branches 803 | -10/Exiles | Met EX-DEC 814 | -10/Exiles | Learned location of Zion (-7) 932 | -10/Exiles | Discovered new exit (range 14) 953 | -10/Exiles | Left Exiles lab with Cloak of Protection 953 | -10/Exiles | Entered Mines 976 | -9/Mines | Received a Rocket Launcher from a helpful Derelict 1529 | -9/Mines | Learned 8 Materials zone layouts 1548 | -9/Mines | Discovered new exit (range 10) 1591 | -9/Mines | Central database locked down 1866 | -9/Mines | Assisted by bots powering up and referring to "LRC-V3" 2106 | -9/Mines | Entered Materials 2106 | -8/Materials | Accompanied by 3 allies 2106 | -8/Materials | Evolved 4 slots: Utility x2, Weapon x2 2107 | -8/Materials | Identified exit to Factory 2399 | -8/Materials | Build established: Tank 2615 | -8/Materials | Discovered exit to Factory (range 4) 3381 | -8/Materials | Build established: Skirmisher 3539 | -8/Materials | Garrison activated, responded to threat 3853 | -8/Materials | Build established: Tank 3867 | -8/Materials | Discovered exit to Factory (range 16) 4906 | -8/Materials | First assault squad dispatched 5115 | -8/Materials | Build established: Scavenger-Tank 5207 | -8/Materials | Garrison activated, responded to threat 5289 | -8/Materials | Sterilization system engaged 5289 | -8/Materials | Non-combat units ordered to evacuate 5353 | -8/Materials | Identified exit to Garrison 5353 | -8/Materials | Entered Garrison 5353 | -8/Garrison | Discovered recently destroyed garrison 5373 | -8/Garrison | Lost 3 parts (2u1w) 5425 | -8/Garrison | Garrison Relay disabled 5530 | -8/Garrison | Discovered exit to Factory (range 80) 5530 | -8/Garrison | Discovered exit to Factory (range 84) 5530 | -8/Garrison | Discovered exit to Factory (range 30) 5672 | -8/Garrison | Garrison Relay disabled 5697 | -8/Garrison | Installed Relay Interface Framework 5821 | -8/Garrison | Build established: Scavenger-Skirmisher 5884 | -8/Garrison | Expanded RIF knowledge: Zone Cloak 5978 | -8/Garrison | Found Imp. Powered Armor 6173 | -8/Garrison | Garrison Relay disabled 6287 | -8/Garrison | Build established: Scavenger-Tank 6325 | -8/Garrison | Garrison Relay disabled 6705 | -8/Garrison | Garrison Relay disabled 6800 | -8/Garrison | Entered Factory 6800 | -7/Factory | Accompanied by 2 allies 6800 | -7/Factory | Evolved 2 slots: Propulsion x1, Utility x1 7458 | -7/Factory | Garrison activated, responded to threat 7600 | -7/Factory | First assault squad dispatched 9429 | -7/Factory | Discovered new exit (range 15) 9839 | -7/Factory | Destroyed 7 combat bots 9888 | -7/Factory | Lost 10 parts (1p2n2u5w) 10196 | -7/Factory | Identified exit to Garrison 10196 | -7/Factory | Entered Garrison 10262 | -7/Garrison | Triggered checkpoint 10271 | -7/Garrison | Triggered checkpoint 10460 | -7/Garrison | Triggered checkpoint 10528 | -7/Garrison | Core integrity fell below 50% 10572 | -7/Garrison | Build established: Scavenger-Skirmisher 10577 | -7/Garrison | Lost 3 parts (1u2w) 10628 | -7/Garrison | Garrison Relay disabled 10688 | -7/Garrison | Discovered new exit (range 14) 10714 | -7/Garrison | Triggered checkpoint 10743 | -7/Garrison | Entered Factory 11662 | -7/Factory | Garrison activated, responded to threat 11766 | -7/Factory | Lost 10 parts (1p2n3u4w) 11821 | -7/Factory | Core integrity fell below 20% 11829 | -7/Factory | Identified exit to Garrison 11829 | -7/Factory | Entered Garrison 11851 | -7/Garrison | Lost 5 parts (3n1u1w) 12055 | -7/Garrison | Triggered checkpoint 12173 | -7/Garrison | Build established: Scavenger-Mutant 12203 | -7/Garrison | Destroyed by S-27 Virus with Autogun Last Messages --------------- 12149_ Acquired Power Sword. 12152_ Dropped Great Axe. 12152_ Acquired Power Sword. 12163_ System corrupted: Matter fused (-8). 12165_ Acquired 3 matter. 12179_ Triggered Stasis Trap. 12179_ A bubble of rippling energy engulfs the area. 12179_ Field strength at 70. 12181_ Field strength at 40. 12182_ Field strength at 10. 12183_ Stasis field depleted. 12194_ C-30 ARC bursts open, deploying its payload. 12194_ S-27 Virus unfolds itself. 12195_ Lgt. Treads destroyed. 12201_ S-27 Virus Autogun severed. 12201_ Power Sword follow-up attack on S-27 Virus. 12201_ Destroyed VTOL Module. Map ----- +----------------------------------------------------+ | ?????????????????????????????????????????????????? | | ?????????????????????????????????????????????????? | | ?????????????????????????????????????????????????? | | ?????????????????????????????????????????????????? | | ?????????????????????????????????????????????????? | | ?????????????????????????????????????????????????? | | ?????????????????????????????????????????????????? | | ?????????????????????????????????????????????????? | | ?????????????????????????????????????????????????? | | ?????????????????????????????????????????????????? | | ?????????????????????????????????????????????????? | | ?????????????????????????????????????????????????? | | ?????????????????????????????????????????????????? | | ?????????????????????????????????????????????????? | | ?????????????????????????????????????????????????? | | ?????????????????Y???????????????????????????????? | | ?????????????????Y???????????????????????????????? | | ?????????????????????????????????????????????????? | | ?????????????????????#######?????????????????????? | | ?????????????????????? #?????????????????????? | | ?????????????????????? #?????######??????????? | | ??????????????????????? #?????# #??????????? | | ?????????????????????### #?????# //#??????????? | | ????????g?g??????????? s s%+?????# #??????????? | | ???????????????????????# s[#?????# /#??????????? | | ???????????????????????# @ #?????# /#??????????? | | ???????????????????????# #?????## ##??????????? | | ???????????????????????# #??????# #???????????? | | ???????????????????????# ######## #???????????? | | ???????????????????????# === #???????????? | | ???????????????????????# ^ = #???????????? | | ???????????????????????# ####= ####???????????? | | ???????????????????????# #??# #??????????????? | | ???????????????????????# #??#####??????????????? | | ???????????????????????# #?????????????????????? | | ???????????????????????# #?????????????????????? | | ???????????????????????# #?????????????????????? | | ???????????????????????# #?????????????????????? | | ???????????????????????# #?????????????????????? | | ???????????????????????# ####################### | | ???????????????????????# # | | ???????????????????????# # | | ???????????????????????# # | | ???????????????????????# #################### # | | ???????????????????????# #??????????????????# # | | ???????????????????????# #??????????????????# # | | ??????????????????????? #??????????????????# # | | ?????????????????????? #??????????????????# # | | ?????????????????????######??????????????????# # | | ?????????????????????????????????????????????# # | +----------------------------------------------------+ Best States ------------- Heat Dissipation 79 Energy Generation 18 Energy Capacity 300 Matter Stores 300 Matter Capacity 300 Sight Range 16 Terrain Scan Density 10 Power Amplification 20 Armor Coverage 600 Resistance: KI 25 Utility Shielding 33 Weapon Shielding 66 Weapon Cycling 15 Evasion (%) 50 Recoil Reduction 3 Offensive Hacking 20 Relay Coupler Types 1 Relay Coupler Value 31 Item Schematics ----------------- None Robot Schematics ------------------ None Fabricated ------------ Nothing Alien Tech Used ----------------- None Achievements -------------- None Challenges ------------ None Game ------ Seed HypervelocityAntimatterSaw Manual? 0 Play Time 01:14:15 Cumulative 166.3 hours Start 2024.04.12 @ 16:35:30 End 2024.04.12 @ 17:59:27 Sessions 1 Manual Loads 0 Difficulty Rogue Special Mode None Game No. 146 Rogue 146 Adventurer 0 Explorer 0 Win Type - Total 4 Types 4/0/0/0/0/0/0/0/0 Lore% 67 Gallery% 76 Achievement% 63 Wizard Run 0 Options --------- Layout 2 ASCII 1 Keyboard 0 Movement Mouse Keybinds 0 Fullscreen 2 Font 24/Smallcaps Map View 50x44 Zoom Use 0% Tactical HUD 1 Map Filters NONE Filters NONE Steam 1 RUN: b009eecd-5905-4979-95b7-50f03584d45d